{"text_format":"1","workbook":"xlsx","n_sheets":7,"sheets":["入力シート","経営届出書","運賃料金表","連絡書","運賃届","新規補助様式","プルダウンリスト用データ"],"not_rendered":{"charts":0,"images":0,"macros":1,"external_links":0,"defined_names":2,"comments":0,"pivot_tables":0},"unopened":[],"bounds":{"document_bytes":16777216,"sheet_cells":100000,"rows_first":2000,"rows_last":500,"rows_between":2000,"halvings":0,"cell_chars":16384,"cell_head_chars":4096},"cells_cut":0,"cells_raw":0,"read":"whole","date_system":"1900"}

{"sheet":"入力シート","index":0,"n_rows":70,"n_cols":14,"rows_kept":70,"cut":false,"hidden":false,"merged":[[39,1,40,7],[8,13,9,23],[12,13,13,21],[40,9,40,12],[39,9,39,12],[38,9,38,12],[30,8,30,12],[35,8,35,12],[32,8,32,11],[36,8,36,11],[31,8,31,11],[5,8,5,12],[8,8,8,12],[12,8,12,12],[14,8,14,12],[6,8,6,12],[9,8,9,12],[57,13,58,24],[58,8,58,11],[17,8,17,12],[16,8,16,12],[42,8,42,12],[19,8,19,10],[26,9,26,11],[22,8,22,12],[27,9,27,11],[28,9,28,11],[57,8,57,11],[46,13,48,21],[27,13,28,23],[32,13,33,24],[38,13,40,26]]}
[]
[null,"貨物軽自動車運送事業経営届出書　入力シート",null,null,null,null,null,null,null,"（着色部をご入力ください）"]
[]
[]
[null,"経営届出書"]
[null,"　１．届出書提出年月日・開始予定日は",null,null,null,null,null,"届出日",null,null,null,null,null,"←届出を提出する日付を入力下さい。（郵送の場合は記入日で構いません）"]
[null," ",null,null,null,null,null,"開始日",null,null,null,null,null,"←軽貨物事業を開始する予定日を入力下さい。（届出日と同日でも構いません）"]
[]
[null,"　２．氏名又は名称は",null,null,null,null,null,"ふりがな",null,null,null,null,null,"　　←個人は住民票の氏名　法人は登記簿謄本の名称を入力下さい。\n　　　姓（名字）と名（名前）の間に「全角スペース」を入れて下さい。"]
[null,"　　　（個人での届出：氏名",null,null,null,null,null,"氏名・名称"]
[null,"　　　\n法人での届出：法人名称を記入）"]
[]
[null,"　３．通称名がありますか（ない場合は記載不要）",null,null,null,null,null,null,null,null,null,null,null,"←「通称名」は屋号など設定する場合は入力下さい。\n　　例）○○運送、○○配送"]
[]
[null,"　４．法人の場合、代表者名は",null,null,null,null,null,null,null,null,null,null,null,"←姓（名字）と名（名前）の間に「全角スペース」を入れて下さい。"]
[]
[null,"　５．住所・電話番号は",null,null,null,null,null,"住所",null,null,null,null,null,"←個人は住民票の住所　法人は登記簿謄本の本店住所を入力下さい。"]
[null,null,null,null,null,null,null,"電話",null,null,null,null,null,"←携帯番号でも構いません。"]
[]
[null,"　６．営業所の名称は",null,null,null,null,null,null,null,null,null,"営業所"]
[null,"　　　（例：本店営業所）"]
[]
[null,"　７．営業所の位置は"]
[null,"　　　（個人で自宅を営業所とする場合、自宅の住所）"]
[null,"　"]
[null,"　８．事業用自動車の種別ごとの数は"]
[null,null,null,null,null,null,null,null,"軽（普通）",null,null,null,"両"]
[null,null,null,null,null,null,null,null,"軽（霊柩）",null,null,null,"両","　事業を行う車両の種別に車両数を入力下さい。\n　　例）軽四輪１両から始める場合　『軽（普通）１両』"]
[null,null,null,null,null,null,null,null,"軽（二輪）",null,null,null,"両"]
[]
[null,"　９．自動車車庫の住所及び㎡数は",null,null,null,null,"住所（位置）",null,null,null,null,null,null,"←個人で自宅を車庫とする場合は、自宅の住所"]
[null,"　　　（軽自動車１両あたり　５㎡）",null,null,null,null,"営業所との距離",null,null,null,null,null,"ｍ","←営業所と同じ場所であれば「０ｍ」　離れている場所であれば直線距離２ｋｍ以内が認められます。"]
[null,null,null,null,null,null,"㎡数（収容能力）",null,null,null,null,null,"㎡","←概算で構いません。\n　例）自身が使用できるスペースが５両分ある場合　５㎡×５両＝２５㎡"]
[]
[null,"　１０．乗務員の休憩又は仮眠のための施設の住所や㎡数は"]
[null,"　　　（１畳あたり　１．６２㎡）",null,null,null,null,"住所（位置）",null,null,null,null,null,null,"←個人で自宅を休憩又は仮眠施設とする場合は、自宅の住所"]
[null,null,null,null,null,null,"㎡数（収容能力）",null,null,null,null,null,"㎡","←休憩・仮眠する場所の広さを入力下さい。（概算で構いません。）"]
[]
[null,"　１１．適用する運送約款は（適用する約款に○）",null,null,null,null,null,null,null,"標準貨物軽自動車運送約款",null,null,null,"　　一般的には標準約款を適用するケースが多いです。ご自身で約款を作成する場合はご相談ください。\n　　また、引越を事業として行う（予定）がある方は、引越運送約款にも○を入力下さい。"]
[null,"　　　※自分で作成した貨物運送約款を適用する場合、\n　　 　　約款の添付が必要となります。",null,null,null,null,null,null,null,"標準貨物軽自動車引越運送約款"]
[null,null,null,null,null,null,null,null,null,"自分で作成した貨物運送約款"]
[]
[null,"　１２．運行管理責任者は",null,null,null,null,null,null,null,null,null,null,null,"←運行管理責任者とは、安全な運行を管理するための者となります。個人の場合は本人氏名を入力ください。"]
[null,"　　　（個人の場合は、本人氏名）"]
[]
[null,"　１３．次の内容について、確認のうえ、問題がなければそれぞれに「○」をご入力ください。"]
[null,"　　　自動車車庫について使用権原があること",null,null,null,null,null,null,null,null,null,null,null,"経営届出書の「宣誓書」の事項となります。各項目ごとに問題がないかご確認ください。なお、1項目でも問題があると届出ができなくなりますのでご注意ください。"]
[null,"　　　使用する土地・建物について関係法令に抵触していないこと"]
[null,"　　　自賠責保険及び任意保険等に加入済みであること"]
[]
[]
[null,"運賃料金表"]
[null,"　運賃料金設定は、「運賃料金表」シートに、設定したい数値を直接ご入力ください。"]
[null,"　　 距離制運賃・時間制運賃は「運賃料金表」シートの、グレー着色部及び下線部に数値を入力ください。"]
[null,"　　 距離制運賃・時間制運賃によらない、個建運賃を設定したい場合は以下にご入力ください。"]
[null,"　　 ※なお、個建運賃の設定は、公正競争の確保及び荷主・消費者保護の観点から限定的な宅配便の配送などに限ります。"]
[]
[null,"　個建運賃料金",null,null,null,null,"荷姿１個あたり",null,null,null,null,null,"円"]
[null,null,null,null,null,null,"運行１回あたり",null,null,null,null,null,"円"]
[null,"　  ※「運賃料金表」を経営届出書に添付することで、「運賃届」は省略できます。"]
[]
[]
[null,"全ての項目を入力後以下の注意点を確認し"]
[null,"「印　刷」ボタンをクリック"]
[null,"「経営届出書」「運賃料金表」「連絡書」が２部ずつ出力されます。"]
[null,"＜注意点＞"]
[null,"　　・本シートは、経営届出書の入力補助シートであり、オンライン申請ではありません。"]
[null,"　　・「経営届出書」シートを開き、記載内容に間違いがないかをご確認ください。"]
[null,"　　・「経営届出書」シートを開き、「宣誓書」の３項目をお読みいただき間違いがないかをご確認ください。"]
[null,"　　★全ての内容に問題がなければ　「管轄運輸支局 輸送担当」　までご提出ください。"]

{"sheet":"経営届出書","index":1,"n_rows":161,"n_cols":55,"rows_kept":161,"cut":false,"hidden":false,"merged":[[1,43,1,55],[40,46,41,53],[40,54,41,55],[40,38,41,43],[40,44,41,45],[77,32,78,53],[46,44,47,45],[54,4,55,55],[57,0,58,55],[54,0,55,3],[52,0,53,3],[52,4,53,55],[34,26,35,35],[34,17,35,18],[32,19,33,25],[34,19,35,25],[36,10,37,45],[42,10,43,45],[32,45,33,55],[50,4,51,55],[11,40,12,55],[38,0,39,37],[32,38,33,44],[34,36,35,37],[126,0,126,55],[127,0,127,55],[128,0,128,55],[130,0,130,55],[142,0,142,55],[139,0,139,55],[140,0,140,55],[132,0,132,55],[133,0,133,55],[141,0,141,55],[129,0,129,55],[136,0,136,55],[138,0,138,55],[137,0,137,55],[134,0,134,55],[135,0,135,55],[131,0,131,55],[155,0,155,55],[156,0,156,55],[157,2,161,55],[149,0,149,55],[150,0,150,55],[151,0,151,55],[152,0,152,55],[153,0,153,55],[143,0,143,55],[144,0,144,55],[145,0,145,55],[146,0,146,55],[147,0,147,55],[148,0,148,55],[154,0,154,55],[122,0,122,55],[123,0,123,55],[124,0,124,55],[125,0,125,55],[118,0,118,55],[119,0,119,55],[120,0,120,55],[121,0,121,55],[114,0,114,55],[115,0,115,55],[116,0,116,55],[117,0,117,55],[77,28,78,31],[98,0,98,55],[110,0,110,55],[111,0,111,55],[112,0,112,55],[113,0,113,55],[106,0,106,55],[107,0,107,55],[108,0,108,55],[109,0,109,55],[102,0,102,55],[103,0,103,55],[104,0,104,55],[105,0,105,55],[81,32,81,53],[99,0,99,55],[100,0,100,55],[101,0,101,55],[94,0,94,55],[95,0,95,55],[96,0,96,55],[97,0,97,55],[93,0,93,55],[87,0,87,55],[88,0,88,55],[89,0,89,55],[59,8,60,23],[59,24,60,47],[65,2,66,55],[92,0,92,55],[75,5,76,20],[79,32,80,53],[82,0,82,55],[83,0,83,55],[90,0,90,55],[91,0,91,55],[71,0,72,1],[84,0,84,55],[85,0,85,55],[71,2,72,55],[67,0,68,55],[79,28,79,31],[61,8,62,23],[86,0,86,55],[81,28,81,31],[61,24,62,47],[73,0,74,1],[73,2,74,55],[69,0,70,1],[69,2,70,55],[4,0,5,55],[28,0,29,7],[20,8,21,55],[7,0,9,55],[11,0,12,27],[11,28,12,39],[14,8,15,31],[18,8,19,31],[18,32,19,55],[28,8,29,53],[14,32,15,38],[14,39,15,55],[13,0,13,7],[14,0,15,7],[16,0,17,7],[18,0,19,7],[26,0,27,7],[13,8,13,55],[22,0,23,55],[16,8,17,55],[24,10,25,45],[20,0,21,7],[26,8,27,55],[46,0,47,43],[48,10,49,45],[40,0,41,35],[40,36,41,37],[44,46,45,55],[44,0,45,45],[50,0,51,3],[28,54,29,55],[34,0,35,6],[34,7,35,16],[32,26,33,37],[46,46,47,53],[46,54,47,55],[38,38,39,45],[34,38,35,44],[34,54,35,55],[34,45,35,53],[38,46,39,55],[30,10,31,45],[32,0,33,6],[32,7,33,18]]}
[]
["　　　　　　　　　　　　",null,null,null,null,"　",null,null,null,null,null,null,null,null,null,null,null,null,null,null,null,null,null,null,null,null,null,null,null,null,null,null,null,null,null,null,null,"　　届出日",null,null,null,null,null,{"$f":"入力シート!I6","v":"00:00:00"}]
[null,null,"関東運輸局　　東京運輸支局長　殿"]
[]
["貨　物　軽　自　動　車　運　送　事　業　経　営　届　出　書"]
[]
[]
["　今般、貨物軽自動車運送事業を経営したいので、貨物自動車運送事業法第３６条及び同法施行規則第３３条の規定により、関係書類を添えて届出いたします。"]
[]
[]
[]
["氏名又は名称並びに代表者の氏名及び住所（主たる事務所）",null,null,null,null,null,null,null,null,null,null,null,null,null,null,null,null,null,null,null,null,null,null,null,null,null,null,null,"開　始　予　定　日",null,null,null,null,null,null,null,null,null,null,null,{"$f":"入力シート!I7","v":"00:00:00"}]
[]
["ふりがな",null,null,null,null,null,null,null,{"$f":"入力シート!I9","v":0}]
["氏名又は名称\n（主たる事務所の名称）",null,null,null,null,null,null,null,{"$f":"入力シート!I10","v":0},null,null,null,null,null,null,null,null,null,null,null,null,null,null,null,null,null,null,null,null,null,null,null,"通称名",null,null,null,null,null,null,{"$f":"入力シート!I13","v":0}]
[]
["代表者氏名",null,null,null,null,null,null,null,{"$f":"入力シート!I15","v":0}]
[]
["住　　所\n（主たる事務所の位置）",null,null,null,null,null,null,null,{"$f":"入力シート!I17","v":0}]
[]
["電話番号",null,null,null,null,null,null,null,{"$f":"入力シート!I18","v":0}]
[]
["事　業　計　画　の　内　容　（住所と同じ場合は、□欄にチェックを入れる）"]
[]
[null,null,null,null,null,null,null,null,null,null,"営業所の名称及び位置"]
[]
["営業所名",null,null,null,null,null,null,null,"位　　　　　　　　　　置"]
[]
[{"$f":"入力シート!I20","v":0},null,null,null,null,null,null,null,{"$f":"入力シート!I23","v":0}]
[]
[null,null,null,null,null,null,null,null,null,null,"事業用自動車の種別ごとの数"]
[]
[null,null,null,null,null,null,null,"車両数",null,null,null,null,null,null,null,null,null,null,null,null,null,null,null,null,null,null,"車両数",null,null,null,null,null,null,null,null,null,null,null,null,null,null,null,null,null,null,"車両数"]
[]
["軽（普通）",null,null,null,null,null,null,{"$f":"入力シート!J27","v":0},null,null,null,null,null,null,null,null,null,"両",null,"軽（霊柩）",null,null,null,null,null,null,{"$f":"入力シート!J28","v":0},null,null,null,null,null,null,null,null,null,"両",null,"軽（二輪）",null,null,null,null,null,null,{"$f":"入力シート!J29","v":0},null,null,null,null,null,null,null,null,"両"]
[]
[null,null,null,null,null,null,null,null,null,null,"自動車車庫の位置及び収容能力"]
[]
["位　　　　　　　　　　置",null,null,null,null,null,null,null,null,null,null,null,null,null,null,null,null,null,null,null,null,null,null,null,null,null,null,null,null,null,null,null,null,null,null,null,null,null,"営業所からの距離",null,null,null,null,null,null,null,"収　容　能　力"]
[]
[{"$f":"入力シート!I31","v":0},null,null,null,null,null,null,null,null,null,null,null,null,null,null,null,null,null,null,null,null,null,null,null,null,null,null,null,null,null,null,null,null,null,null,null,null,null,{"$f":"入力シート!I32","v":0},null,null,null,null,null,"㎡",null,{"$f":"入力シート!I33","v":0},null,null,null,null,null,null,null,"㎡"]
[]
[null,null,null,null,null,null,null,null,null,null,"乗務員の休憩又は睡眠のための施設の位置及び収容能力"]
[]
["位　　　　　　　　　　置　　　　　　　　　　",null,null,null,null,null,null,null,null,null,null,null,null,null,null,null,null,null,null,null,null,null,null,null,null,null,null,null,null,null,null,null,null,null,null,null,null,null,null,null,null,null,null,null,null,null,"収　容　能　力"]
[]
[{"$f":"入力シート!I36","v":0},null,null,null,null,null,null,null,null,null,null,null,null,null,null,null,null,null,null,null,null,null,null,null,null,null,null,null,null,null,null,null,null,null,null,null,null,null,null,null,null,null,null,null,null,null,{"$f":"入力シート!I37","v":0},null,null,null,null,null,null,null,"㎡"]
[]
[null,null,null,null,null,null,null,null,null,null,"運送約款（該当する□欄にチェックを入れる）"]
[]
[{"$f":"IF(入力シート!I39=\"○\",\"☑\",\"□\")","v":"□"},null,null,null,"標準貨物軽自動車運送約款（平成１５年国土交通省告示第１７１号）"]
[]
[{"$f":"IF(入力シート!I40=\"○\",\"☑\",\"□\")","v":"□"},null,null,null,"標準貨物軽自動車引越運送約款（平成１５年国土交通省告示第１７２号）"]
[]
[{"$f":"IF(入力シート!I41=\"○\",\"☑\",\"□\")","v":"□"},null,null,null,"その他運送約款"]
[]
[]
["運行管理体制を記載した書面"]
[]
[null,null,null,null,null,null,null,null,"所属営業所名",null,null,null,null,null,null,null,null,null,null,null,null,null,null,null,"運行管理の責任者氏名"]
[]
[null,null,null,null,null,null,null,null,{"$f":"入力シート!I20","v":0},null,null,null,null,null,null,null,null,null,null,null,null,null,null,null,{"$f":"入力シート!I43","v":0}]
[]
[]
[]
[null,null,"関東運輸局　東京運輸支局長　殿"]
[]
["宣　　　　　誓　　　　　書"]
[]
[{"$f":"IF(入力シート!L47=\"○\",\"☑\",\"□\")","v":"□"},null,"届出にかかる自動車車庫については、私に使用権原があることを宣誓します。"]
[]
[{"$f":"IF(入力シート!L48=\"○\",\"☑\",\"□\")","v":"□"},null,"届出にかかる自動車車庫の土地・建物は、都市計画法等の関係法令に抵触しないことを宣誓します。"]
[]
[{"$f":"IF(入力シート!L49=\"○\",\"☑\",\"□\")","v":"□"},null,"貨物の運送に関し支払うことのある損害賠償の支払い能力を有することを宣誓します。"]
[]
[null,null,null,null,null,{"$f":"入力シート!I6","v":"00:00:00"}]
[]
[null,null,null,null,null,null,null,null,null,null,null,null,null,null,null,null,null,null,null,null,null,null,null,null,null,null,null,null,"住　所",null,null,null,{"$f":"入力シート!I17","v":0}]
[]
[null,null,null,null,null,null,null,null,null,null,null,null,null,null,null,null,null,null,null,null,null,null,null,null,null,null,null,null,"氏　名",null,null,null,{"$f":"入力シート!I9","v":0}]
[]
[null,null,null,null,null,null,null,null,null,null,null,null,null,null,null,null,null,null,null,null,null,null,null,null,null,null,null,null,"（名称）",null,null,null,{"$f":"入力シート!I13","v":0}]
["貨物軽自動車運送事業の経営届出様式を使用した場合の記入要領"]
[]
["　１．届出日の欄"]
["　　　経営届出書を運輸支局に提出する日を記入してください。"]
[]
["　２．開始予定日の欄"]
["　　　事業を始める日を記入してください。"]
[]
["　３．氏名又は名称（主たる事務所の名称）の欄"]
["　（１）個人名義で事業を行う場合は、氏名を記入してください。（記入例：〇〇 一郎）"]
["　（２）法人名義で事業を行う場合は、会社の正式名称を記入してください。（記入例：株式会社 〇〇運送）"]
["　（３）事業経営上、通称名を使用する場合は、（通称名：　）の欄に、その名称を記入してください。（記入例： 〇〇 運送）"]
[]
["　４．代表者氏名の欄"]
["　　　法人名義で事業を行う場合は、代表者の氏名を記入してください。（記入例：代表取締役 〇〇 一郎）"]
[]
["　５．住所（主たる事務所の位置）の欄"]
["　（１）個人名義で事業を行う場合は、その方の住所を記入してください。"]
["　（２）法人名義で事業を行う場合は、会社の本社所在地を記入してください。"]
[]
["　６．電話番号の欄"]
["　　　連絡先となる電話番号を記入してください。"]
[]
["　７．営業所の名称及び位置"]
["　（１）営業所名の欄"]
["　　　　事業用自動車を配置する営業所の名称を記入してください。"]
["　　（記入例）"]
["　　　・個人名義で１両で事業を行う場合には、自宅が営業所ということが考えられますので、その場合には、本店或いは"]
["　　　　○○運送といった記入が考えられます。"]
["　　　・法人名義で事業を行う場合には、会社で決めた名称を記入してください。"]
["　（２）位置の欄"]
["　　　　当該営業所の住所を記入してください。なお、住所と同じ場合は、「□住所に同じ」のところの□にレ点し、住所の"]
["　　　記入を省略して結構です。"]
["　（３）営業所が複数有る場合の記入等方法"]
["　　　　２ヶ所目以降の営業所については、別に定めた補助用紙の所定欄に同様の記入方法で記入してください。"]
[]
["　８．事業用自動車の種別ごとの数"]
["　（１）営業所ごとの事業用自動車の種別ごとの数を、該当する欄に記入してください。"]
["      　注）種別のうち、"]
["　　　　　・軽（普通）とは、軽自動車で霊柩及び二輪以外の自動車のことです。"]
["　　　　　・軽（霊柩）とは、軽自動車で霊柩自動車のことです。"]
["　　　　　・二輪とは、二輪バイクで１２５ＣＣを超える排気量のものです。"]
["　（２）営業所が複数有る場合の営業所ごとの記入方法"]
["　　　　２ヶ所目以降の営業所分については、別に定めた補助用紙の所定欄に同様の記入方法で記入してください。"]
[]
["　９．自動車車庫の位置及び収容能力"]
["　（１）位置の欄"]
["　　　　事業用自動車の車庫の住所を記入してください。なお、住所と同じ場合は、「□住所に同じ」のところの□にレ点し、"]
["　　　住所の記入を省略して結構です。"]
["　（２）収容能力の欄"]
["　　　　車庫の面積を記入してください。"]
["　（３）営業所が複数有る場合の営業所ごとの記入等方法"]
["　　　　２ヶ所目以降の営業所分については、別に定めた補助用紙の所定欄に同様の記入方法で記入してください。"]
[]
["１０．乗務員の休憩又は睡眠のための施設の位置及び収容能力"]
["　　　　「９．自動車車庫の位置及び収容能力」に準じて記入してください。"]
[]
["１１．標準運送約款と同一の運送約款を定めるかどうかの別"]
["　（１）標準貨物軽自動車運送約款、標準貨物軽自動車引越運送約を使用する場合には、該当する運送約款の□に"]
["　　　レ点してください。"]
["　（２）標準運送約款以外の運送約款を使用する場合は、「その他運送約款」の□にレ点してください。なお、この場合は、"]
["　　　当該運送約款を添付することが必要となります。"]
[]
["１２．運行管理体制を記載した書面"]
["　（１）所属営業所名の欄"]
["　　　　上記営業所の名称を記入してください。"]
["　（２）運行管理の責任者氏名の欄"]
["　　　　上記営業所における、日常の運行管理責任者の氏名を記入してください。"]
["　　（記載例）"]
["　　　・個人名義で１両で事業を行う場合には、事業者本人が責任者であれば本人の氏名を記入してください。"]
["　　　・法人名義で事業を行う場合には、営業所ごとに会社で選任した責任者の氏名を記入してください。"]
["　（３）営業所が複数有る場合の営業所ごとの記入等方法"]
["　　　　２ヶ所目以降の営業所分については、別に定めた補助用紙の所定欄に運行管理責任者の氏名を記入してください。"]
[]
["１３．宣誓書"]
[null,null,"　自動車車庫について使用権原があることが確実である場合、及び、車庫の土地・建物が都市計画法等（農地法、建築基準法、車両制限令等）の関係法令に抵触していないこと、貨物の運送に関し支払うことのある損害賠償の支払い能力を有することが確実である場合に、日付の欄に届出日と同様の日付を記載し、住所及び氏名の欄に届出人の住所、及び、氏名又は名称を記入してください。なお、宣誓書の記入がない場合は、届出内容が補正されてから受理します。"]
["　　"]
["　　"]
["　　"]

{"sheet":"運賃料金表","index":2,"n_rows":45,"n_cols":56,"rows_kept":45,"cut":false,"hidden":false,"merged":[[8,1,8,11],[7,55,7,57],[7,51,7,54],[7,25,7,50],[14,25,14,50],[13,25,13,50],[8,55,14,57],[11,25,12,50],[10,25,10,50],[7,12,7,17],[8,12,8,17],[12,12,12,17],[11,12,11,17],[10,12,10,17],[10,51,14,54],[8,51,9,54],[7,1,7,11],[0,0,1,57],[4,1,4,11],[3,1,3,11],[4,12,4,17],[3,12,3,17],[26,25,26,57],[17,4,17,11],[18,4,18,11],[17,1,18,3],[23,9,23,10],[22,9,22,10],[18,12,18,17],[23,16,23,17],[21,16,21,17],[25,20,25,21],[24,20,24,21],[8,25,9,50],[38,20,38,21],[29,20,29,22],[12,1,12,11],[11,1,11,11],[10,1,10,11],[30,3,31,7],[32,3,35,7],[30,8,31,19],[32,8,33,19],[27,25,27,57],[28,25,29,57],[31,25,32,57],[21,9,21,10],[29,3,29,7],[29,8,29,19],[41,3,44,19],[37,25,39,57],[42,25,43,57],[39,3,39,7],[38,3,38,7],[36,3,37,7],[36,8,37,19],[30,20,37,22],[41,20,44,22],[39,20,39,21],[34,8,35,19],[9,12,9,17],[17,12,17,17],[16,12,16,17],[15,12,15,17],[39,8,39,19],[38,8,38,19],[15,4,15,11],[16,4,16,11],[9,1,9,11],[15,1,16,3]]}
["＜貨物軽自動車運送事業運賃料金表＞"]
[]
["　　個建運賃表（宅配便で東京都内配送センターから　　キロ以内の運送に限る。）"]
[null,"荷姿１個あたり",null,null,null,null,null,null,null,null,null,null,{"$f":"入力シート!I58","v":0},null,null,null,null,null,"円"]
[null,"運行１回あたり",null,null,null,null,null,null,null,null,null,null,{"$f":"入力シート!I59","v":0},null,null,null,null,null,"円"]
[]
["１．距離制運賃表",null,null,null,null,null,null,null,null,null,null,null,null,null,null,null,null,null,null,null,null,null,null,"（３）",null,"冬期割増"]
[null,"１０ｋｍまで",null,null,null,null,null,null,null,null,null,null,null,null,null,null,null,null,"円",null,null,null,null,null,null,"地域",null,null,null,null,null,null,null,null,null,null,null,null,null,null,null,null,null,null,null,null,null,null,null,null,null,"期間",null,null,null,"割増率"]
[null,"２０ｋｍまで",null,null,null,null,null,null,null,null,null,null,null,null,null,null,null,null,"円",null,null,null,null,null,null,"北海道",null,null,null,null,null,null,null,null,null,null,null,null,null,null,null,null,null,null,null,null,null,null,null,null,null,"自11月16日\n至 4月15日",null,null,null,"　　　割"]
[null,"３０ｋｍまで",null,null,null,null,null,null,null,null,null,null,null,null,null,null,null,null,"円"]
[null,"４０ｋｍまで",null,null,null,null,null,null,null,null,null,null,null,null,null,null,null,null,"円",null,null,null,null,null,null,"青森県･秋田県･山形県･新潟県･長野県･富山県･石川県･福井県･鳥取県･島根県の全県",null,null,null,null,null,null,null,null,null,null,null,null,null,null,null,null,null,null,null,null,null,null,null,null,null,"自12月1日\n至3月31日"]
[null,"５０ｋｍまで",null,null,null,null,null,null,null,null,null,null,null,null,null,null,null,null,"円",null,null,null,null,null,null,"岩手県のうち北上市･久慈市･遠野市･二戸市･八幡平市･滝沢市･九戸郡･二戸郡･上閉伊 郡･下閉伊郡･岩手郡･和賀郡"]
[null,"以降５ｋｍまでを増すごとに",null,null,null,null,null,null,null,null,null,null,null,null,null,null,null,null,"円加算"]
[null,null,null,null,null,null,null,null,null,null,null,null,null,null,null,null,null,null,null,null,null,null,null,null,null,"福島県のうち会津若松市･喜多方市･南会津郡･耶麻郡･大沼郡･河沼郡"]
["２．時間制運賃表",null,null,null,null,null,null,null,null,null,null,null,null,null,null,null,null,null,null,null,null,null,null,null,null,"岐阜県のうち高山市･飛騨市･下呂市･郡上市･大野郡"]
[null,"基礎額",null,null,"４時間又は４０ｋｍまで",null,null,null,null,null,null,null,null,null,null,null,null,null,"円"]
[null,null,null,null,"８時間又は８０ｋｍまで",null,null,null,null,null,null,null,null,null,null,null,null,null,"円",null,null,null,null,"（４）",null,"休日割増"]
[null,"加算額",null,null,"１０ｋｍまでを増すごとに",null,null,null,null,null,null,null,null,null,null,null,null,null,"円加算",null,null,null,null,null,null,"日曜祝祭日に運送した距離に限る"]
[null,null,null,null,"１時間までを増すごとに",null,null,null,null,null,null,null,null,null,null,null,null,null,"円加算"]
[null,null,null,null,null,null,null,null,null,null,null,null,null,null,null,null,null,null,null,null,null,null,null,"（５）",null,"深夜・早朝割増"]
["３．諸料金",null,null,null,null,null,null,null,null,null,null,null,null,null,null,null,null,null,null,null,null,null,null,null,null,"午後10時から午前5時までに運送した距離"]
[null,"（１）",null,"積込料及び取卸料",null,null,null,null,null,"　　　",null,"分までごとに、",null,null,null,null,"　　　",null,"円"]
[null,null,null,"待機料",null,null,null,null,null,"　　　",null,"分を超える場合においては",null,null,null,null,null,null,null,null,null,null,null,"５．消費税及び地方消費税の加算（免税対象となる取引は除く。）"]
[null,null,null,null,null,null,null,null,null,"　　　",null,"分までごとに",null,null,null,null,"　　　",null,"円",null,null,null,null,"運賃料金総額×消費税法等に基づく税率"]
[null,"（２）",null,"地区割増料",null,null,null,null,"Ａ地区（東京都特別区及び大阪市）",null,null,null,null,null,null,null,null,null,null,null,"　　　",null,"円"]
[null,null,null,null,null,null,null,null,"Ｂ地区（上記を除く政令指定都市）",null,null,null,null,null,null,null,null,null,null,null,"　　　",null,"円","６．運賃料金適用方法"]
[null,null,null,null,null,null,null,null,null,null,null,null,null,null,null,null,null,null,null,null,null,null,null,"（１）",null,"運賃料金は、使用車両1車1回の運送ごとに計算します。"]
["４．運賃割増率",null,null,null,null,null,null,null,null,null,null,null,null,null,null,null,null,null,null,null,null,null,null,"（２）",null,"運賃は、運賃表に掲げてある金額（以下「基準運賃」という。）の上下それぞれ　％の範囲内で計算します。"]
[null,"（１）",null,"品目割増",null,null,null,null,null,null,null,null,null,null,null,null,null,null,null,null,null,null,null,"（３）",null,"割増率・割引率が適用される場合は、基準運賃にそれぞれの率を乗じた金額を基準運賃に加減した上で、上下それぞれ％の範囲内で計算します。"]
[null,null,null,"項　目",null,null,null,null,"内　容",null,null,null,null,null,null,null,null,null,null,null,"割増率"]
[null,null,null,"易損品",null,null,null,null,"電子計算機等の精密機器とその部品、みこし、仏壇、伸仏像、ピアノ類",null,null,null,null,null,null,null,null,null,null,null,"　　割以上の臨時の約束による",null,null,"（４）",null,"運賃料金を計算する場合において生じた端数は、100円単位に切り上げるものとします。"]
[null,null,null,null,null,null,null,null,null,null,null,null,null,null,null,null,null,null,null,null,null,null,null,"（５）",null,"運送距離は、1車1回の運送ごとの実車キロ程によるものとし、経路が2途以上ある時は、その最短となる経路のキロ程により計算します。"]
[null,null,null,"危険品",null,null,null,null,"高圧ガス取締法、消防法及び毒物劇薬取締法に定める品目"]
[null,null,null,null,null,null,null,null,null,null,null,null,null,null,null,null,null,null,null,null,null,null,null,"（６）",null,"2種類以上の割増率又は割引率が重複する場合は、それぞれの率をあらかじめ加減した上で計算します。"]
[null,null,null,null,null,null,null,null,"火薬類取締法に定める品目、放射性物 質及びこれに類するもの",null,null,null,null,null,null,null,null,null,null,null,null,null,null,"（７）",null,"3ヶ月以上にわたる文書による運送契約については、基準運賃に対して　％以内の割引率を適用することができます。"]
[null,null,null,null,null,null,null,null,null,null,null,null,null,null,null,null,null,null,null,null,null,null,null,"（８）",null,"往復輸送の場合は、復路及び復路の基準運賃について、それぞれ　％以内の割引率を適用することができます。"]
[null,null,null,"貴重品・高価品",null,null,null,null,"貨物運送約款第9条第1項に掲げる貨物",null,null,null,null,null,null,null,null,null,null,null,null,null,null,"（９）",null,"荷送人又は荷受人の依頼により貨物の積込み又は取卸しを引き受けた場合には積込料又は取卸料を収受します。"]
[null,null,null,null,null,null,null,null,null,null,null,null,null,null,null,null,null,null,null,null,null,null,null,"（10）",null,"車両が貨物の発地又は着地に到着後、荷送人又は荷受人の責により待機した時間（荷送人又は荷受人が貨物の積込み若しくは取卸し又は附帯業務を行う場合における待機した時間を含む。）に応じて待機時間料を収受します。ただし、１回の運送において２箇所以上で待機が発生する場合は、それぞれについて合計するものとします。"]
[null,null,null,"特殊物件",null,null,null,null,"引越荷物、生きた動物、鮮魚介類",null,null,null,null,null,null,null,null,null,null,null,"　　",null,"割"]
[null,null,null,"汚わい品",null,null,null,null,"塵芥等の廃棄物、し尿等",null,null,null,null,null,null,null,null,null,null,null,"　　",null,"割"]
[null,"（２）",null,"特大品割増",null,null,null,null,null,null,null,null,null,null,null,null,null,null,null,null,null,null,null,"（11）",null,"貨物の発地又は着地が東京都特別区又は政令指定都市の場合は、所定の地区割増料を収受します。"]
[null,null,null,"１個の長さが荷台の長さにその長さの１割を加えたもの、重量１００ｋｇ又は容積１㎥以上のもの",null,null,null,null,null,null,null,null,null,null,null,null,null,null,null,null,"　　割以上の臨時の約束による",null,null,"（12）",null,"有料道路利用料、フェリー利用料、附帯作業等にかかる費用は、実費として収受します。"]
[null,null,null,null,null,null,null,null,null,null,null,null,null,null,null,null,null,null,null,null,null,null,null,"（13）",null,"時間制運賃の走行キロ及び時間の計算は、使用車両が荷主の指定した場所に到着した時から、その作業が終了して車庫に帰着するまでとします。"]
[]
[null,null,null,null,null,null,null,null,null,null,null,null,null,null,null,null,null,null,null,null,null,null,null,"（14）",null,"この適用方法に定めのない事項は、法令に反しない範囲で当時者の取り決め又は慣習によるものとします。"]

{"sheet":"連絡書","index":3,"n_rows":36,"n_cols":17,"rows_kept":36,"cut":false,"hidden":false,"merged":[[28,0,35,2],[28,3,35,6],[22,6,22,9],[22,14,22,17],[23,0,25,2],[23,3,23,17],[24,3,24,17],[25,3,25,17],[21,3,21,4],[21,6,21,9],[21,10,21,12],[21,14,21,17],[26,0,27,2],[26,3,27,17],[12,0,22,2],[12,3,12,7],[12,8,17,9],[12,10,12,15],[12,16,17,17],[13,3,13,7],[13,10,17,15],[14,3,14,7],[15,3,15,7],[16,3,16,7],[20,3,20,4],[20,6,20,9],[20,10,20,12],[20,14,20,17],[19,3,19,9],[19,10,19,17],[17,3,17,7],[18,3,18,4],[18,6,18,9],[18,10,18,12],[9,0,10,2],[9,3,10,8],[9,9,10,11],[9,12,10,17],[11,0,11,2],[11,3,11,9],[11,10,11,17],[18,14,18,17],[6,0,6,2],[6,3,6,17],[7,0,8,2],[7,3,8,8],[7,9,8,11],[7,12,8,17],[4,14,4,15],[4,16,4,17],[0,0,1,17],[2,14,2,15],[2,16,2,17],[3,14,3,15],[3,16,3,17]]}
["事 業 用 自 動 車 等 連 絡 書"]
[]
[null,null,null,null,null,null,null,null,null,null,null,null,null,"※","発行番号",null,"第　　　　　　　　　　　　　　号"]
["　この書類は、道路運送法、貨物利用運送事業法又は貨物自動車運送事業法による自動車運送事業、第二種利用運送事業の許可・",null,null,null,null,null,null,null,null,null,null,null,null,null,"発行日",null,"令和　　年　　月　　日"]
["事業計画変更の認可を受け、若しくは届け出をしたもの、又は事業用自動車の代替であると確認したことを証するものである。",null,null,null,null,null,null,null,null,null,null,null,null,null,"有効期限",null,"発行の日から１ヶ月"]
[]
["事業等の種別",null,null,"　　旅客〔 乗合 ・ 貸切 ・ ハイヤー ・ タクシー ・ 特定 〕　 貨物〔　一般 ・ 特定 ・ 軽 ・ 霊柩 ・ 第二種利用　〕　 その他〔レンタカー ・ （　　　　　　　　　　　　　　　　）〕"]
["使用者の名称\n（事業者名）",null,null,{"$f":"経営届出書!I15","v":0},null,null,null,null,null,"所　属　営　業　所　名",null,null,{"$f":"入力シート!I20","v":0}]
[]
["使用者の住所\n（事業者の住所）",null,null,{"$f":"経営届出書!I19","v":0},null,null,null,null,null,"使 用 の 本 拠 の 位 置\n（ 営 業 所 の 位 置 ）",null,null,{"$f":"経営届出書!I29","v":0}]
[]
["使用・廃止の別",null,null,"使　用　し　よ　う　と　す　る　自　動　車",null,null,null,null,null,null,"廃 止 （減車・まっ消等） す る 自 動 車"]
["自動車登録番号等\n（車両番号）",null,null,"※新自動車登録番号（車両番号）",null,null,null,null,"※登録完了印・登録官印",null,"旧　自動車登録番号（車両番号）",null,null,null,null,null,"※登録完了印・登録官印"]
[]
[null,null,null,"［型式］新車の場合（諸元表の写しを提示）"]
[]
[null,null,null,"［車台番号］中古車の場合（車検証等の原本若しくは写しを提示）"]
[]
[null,null,null,"①自動車の年式",null,"・・・・・・","Ｈ　　　　　　  　　　　　　　年式",null,null,null,"①自動車の年式",null,null,"・・・・・・","Ｓ ・ Ｈ ・ Ｒ　　　　　　　　　　　　　　　 年式"]
[null,null,null,"　　（旅客・貨物自動車とも）　　　　 乗車定員　　　　　　　　　　  　　　　　 人",null,null,null,null,null,null,"　　（旅客・貨物自動車とも）　　　 乗車定員　　　　　　　　　　　　　　　　 人"]
[null,null,null,"②旅客自動車",null,"・・・・・・","自動車の長さ　　　　　　　      　　　　ｃｍ",null,null,null,"②旅客自動車",null,null,"・・・・・・","自動車の長さ　　　　　　　　　　　　　　ｃｍ"]
[null,null,null,"③貨物自動車",null,"・・・・・・","種別（普通・小型・けん引・被けん引・特種・軽）",null,null,null,"③貨物自動車",null,null,"・・・・・・","種別（普通・小型・けん引・被けん引・特種・軽）"]
[null,null,null,null,null,null,"最大積載量　　　　　　　　　　　　　　ｋｇ",null,null,null,null,null,null,null,"最大積載量　　　　　　　　　　　　　　ｋｇ"]
["事案発生理由",null,null,"※　新規許可・新規届出・譲渡譲受・合併・分割・相続・休止・廃止・取消し"]
[null,null,null,"　　 事業計画の変更［増車・減車・代替・営配・他支局管内への移動　（　　　　　　　　　　　　　　運輸支局　→　　　　　　　　　　　　　　運輸支局）］"]
[null,null,null,"      使用者及び所有者の名称又は住所の変更　・　使用の本拠の位置のみの変更　・　自動車登録番号のみの変更　　　　　　　　　（　　　　　　　　　　　　　　　　　）"]
["備考欄",null,null,"※"]
[]
["確認印及び\n担当官印\n\n\n\n輸送部門\n（企画輸送部門）",null,null,"※ 確認印・担当官印",null,null,null,"　（注）　１．この連絡書は、再発行しないので、取扱いに注意してください。"]
[null,null,null,null,null,null,null,"　　　　　２．連絡書に必要な事項を記入の上、輸送部門（企画輸送部門）に提出してください。"]
[null,null,null,null,null,null,null,"　　　　　３．新たに使用する自動車が新車の場合は諸元表、中古車の場合は車検証（又は、一時抹消登録証明書"]
[null,null,null,null,null,null,null,"　　　　　　　若しくは、登録識別情報等通知書）の原本若しくは写しを、提示してください。"]
[null,null,null,null,null,null,null,"　　　　　４．連絡書は、輸送部門（企画輸送部門）の確認を受けた後、登録関係書類に添えて登録部門（軽自動車"]
[null,null,null,null,null,null,null,"　　　　　　　にあっては軽自動車検査協会）に提出してください。"]
[null,null,null,null,null,null,null,"　　　　　５．※印欄は記入しないでください。"]
[null,null,null,null,null,null,null,"発行元連絡先：　　　　　　　　　　　　　　　　運輸支局　輸送担当　ＴＥＬ　　　　　　　　　　－　　　　　　　　　　　－"]

{"sheet":"運賃届","index":4,"n_rows":50,"n_cols":8,"rows_kept":50,"cut":false,"hidden":false,"merged":[[14,0,14,9],[16,0,16,9]]}
[]
[null,null,null,null,null,null,null,"令和　　　年　　　月　　　日"]
[]
["　　関東運輸局　　　　運輸支局長　 　殿"]
[]
["　　　",null,null,null,"住　　　所"]
[]
[null,null,null,null,"事業者名"]
[]
[null,null,null,null,"代表者名"]
[]
[null,null,null,null,"電話番号"]
[]
[]
["運 賃 料 金 設 定（変更） 届 出 書"]
[]
["　  貨物自動車運送事業報告規則第２条の２に基づき、運賃及び料金を設定（変更）したので、"]
["  下記のとおり提出します。"]
[]
[]
[null,null,null,"　　　　　記"]
[]
["　　　","１．氏名又名称及び住所並びに法人にあっては、その代表者の氏名"]
[]
[null,"　　氏名又は名称"]
[]
[null,"　　住　　　　　　所"]
[]
[null,"　　代　表　者　名"]
[]
[]
[null,"２．事業の種別"]
[]
[null,"貨物軽自動車運送事業"]
[]
[]
[null,"３．設定した運賃及び料金を適用する運行系統又は地域"]
[]
[null,"　　全国　　・　　運輸局管内　　・　　運輸支局管内"]
[]
[]
[null,"４．設定した運賃及び料金の種類（積合、貸切又は引越等の別）、額及び適用方法"]
[]
[null,"　　別添のとおり"]
[]
[]
[]
[]
[null,"５．実施年月日"]
[null,"　　令和　　　年　　　月　　　日より実施"]

{"sheet":"新規補助様式","index":5,"n_rows":70,"n_cols":51,"rows_kept":70,"cut":false,"hidden":false,"merged":[[21,10,22,43],[21,44,22,55],[15,10,16,43],[15,44,16,55],[17,10,18,43],[17,44,18,55],[9,44,10,55],[9,10,10,43],[11,10,12,43],[11,44,12,55],[65,0,66,1],[65,2,66,43],[65,44,66,45],[65,46,66,55],[49,46,50,55],[41,46,42,55],[41,38,42,45],[35,20,36,25],[37,50,38,55],[35,26,36,31],[35,32,36,37],[35,38,36,43],[35,44,36,49],[35,50,36,55],[37,38,38,43],[37,44,38,49],[51,0,52,1],[51,2,52,37],[51,38,52,45],[51,46,52,55],[35,0,36,1],[35,2,36,7],[35,8,36,13],[35,14,36,19],[37,26,38,31],[37,32,38,37],[37,2,38,7],[37,8,38,13],[37,14,38,19],[37,20,38,25],[31,50,32,55],[33,2,34,7],[33,8,34,13],[33,14,34,19],[33,20,34,25],[33,26,34,31],[33,32,34,37],[33,38,34,43],[33,44,34,49],[33,50,34,55],[29,50,30,55],[31,38,32,43],[31,44,32,49],[29,38,30,43],[31,2,32,7],[31,8,32,13],[31,14,32,19],[31,20,32,25],[31,26,32,31],[31,32,32,37],[25,44,26,49],[25,50,26,55],[27,38,28,43],[27,44,28,49],[27,50,28,55],[57,46,58,55],[57,0,58,45],[55,10,56,45],[49,0,50,1],[49,2,50,37],[53,0,54,1],[53,2,54,37],[53,38,54,45],[53,46,54,55],[49,38,50,45],[45,2,46,37],[45,38,46,45],[25,8,26,13],[25,14,26,19],[29,2,30,7],[29,8,30,13],[29,14,30,19],[31,0,32,1],[29,44,30,49],[1,0,2,55],[33,0,34,1],[7,10,8,45],[27,0,28,1],[27,8,28,13],[11,0,12,1],[9,0,10,9],[11,2,12,9],[27,14,28,19],[25,20,26,25],[5,0,6,55],[25,38,26,43],[15,0,16,1],[15,2,16,9],[17,0,18,1],[25,26,26,31],[25,32,26,37],[27,20,28,25],[27,26,28,31],[27,32,28,37],[29,20,30,25],[29,26,30,31],[29,0,30,1],[25,2,26,7],[21,0,22,1],[21,2,22,9],[61,46,62,55],[63,46,64,55],[59,0,60,1],[59,2,60,43],[17,2,18,9],[13,10,14,43],[13,44,14,55],[13,0,14,1],[13,2,14,9],[19,0,20,1],[19,10,20,43],[19,44,20,55],[43,0,44,1],[43,2,44,37],[19,2,20,9],[41,0,42,37],[39,10,40,45],[23,10,24,45],[25,0,26,1],[27,2,28,7],[29,32,30,37],[37,0,38,1],[69,0,70,1],[69,2,70,43],[69,44,70,45],[69,46,70,55],[43,38,44,45],[43,46,44,55],[63,0,64,1],[67,44,68,45],[67,46,68,55],[67,0,68,1],[67,2,68,43],[63,2,64,43],[63,44,64,45],[59,46,60,55],[59,44,60,45],[61,0,62,1],[61,2,62,43],[61,44,62,45],[45,46,46,55],[47,0,48,1],[47,2,48,37],[47,38,48,45],[47,46,48,55],[45,0,46,1]]}
[]
["貨物軽自動車運送事業経営届出書補助様式"]
[]
[]
[]
["事　業　計　画　の　内　容"]
[]
[null,null,null,null,null,null,null,null,null,null,"営業所の名称及び位置"]
[]
["営業所名",null,null,null,null,null,null,null,null,null,"位　　　　　　　　　　置",null,null,null,null,null,null,null,null,null,null,null,null,null,null,null,null,null,null,null,null,null,null,null,null,null,null,null,null,null,null,null,null,null,"運行管理責任者"]
[]
[1]
[]
[2]
[]
[3]
[]
[4]
[]
[5]
[]
[6]
[]
[null,null,null,null,null,null,null,null,null,null,"事業用自動車の種別ごとの数"]
[]
[null,null,null,null,null,null,null,null,"車両数",null,null,null,null,null,"乗車定員",null,null,null,null,null,null,null,null,null,null,null,"車両数",null,null,null,null,null,"乗車定員",null,null,null,null,null,null,null,null,null,null,null,"車両数",null,null,null,null,null,"乗車定員"]
[]
[1,null,"軽（普通）",null,null,null,null,null,"両",null,null,null,null,null,"名",null,null,null,null,null,"軽（霊柩）",null,null,null,null,null,"両",null,null,null,null,null,"名",null,null,null,null,null,"二　輪",null,null,null,null,null,"両",null,null,null,null,null,"名"]
[]
[2,null,"軽（普通）",null,null,null,null,null,"両",null,null,null,null,null,"名",null,null,null,null,null,"軽（霊柩）",null,null,null,null,null,"両",null,null,null,null,null,"名",null,null,null,null,null,"二　輪",null,null,null,null,null,"両",null,null,null,null,null,"名"]
[]
[3,null,"軽（普通）",null,null,null,null,null,"両",null,null,null,null,null,"名",null,null,null,null,null,"軽（霊柩）",null,null,null,null,null,"両",null,null,null,null,null,"名",null,null,null,null,null,"二　輪",null,null,null,null,null,"両",null,null,null,null,null,"名"]
[]
[4,null,"軽（普通）",null,null,null,null,null,"両",null,null,null,null,null,"名",null,null,null,null,null,"軽（霊柩）",null,null,null,null,null,"両",null,null,null,null,null,"名",null,null,null,null,null,"二　輪",null,null,null,null,null,"両",null,null,null,null,null,"名"]
[]
[5,null,"軽（普通）",null,null,null,null,null,"両",null,null,null,null,null,"名",null,null,null,null,null,"軽（霊柩）",null,null,null,null,null,"両",null,null,null,null,null,"名",null,null,null,null,null,"二　輪",null,null,null,null,null,"両",null,null,null,null,null,"名"]
[]
[6,null,"軽（普通）",null,null,null,null,null,"両",null,null,null,null,null,"名",null,null,null,null,null,"軽（霊柩）",null,null,null,null,null,"両",null,null,null,null,null,"名",null,null,null,null,null,"二　輪",null,null,null,null,null,"両",null,null,null,null,null,"名"]
[]
[null,null,null,null,null,null,null,null,null,null,"自動車車庫の位置及び収容能力"]
[]
["位　　　　　　　　　　置",null,null,null,null,null,null,null,null,null,null,null,null,null,null,null,null,null,null,null,null,null,null,null,null,null,null,null,null,null,null,null,null,null,null,null,null,null,"営業所からの距離",null,null,null,null,null,null,null,"収　容　能　力"]
[]
[1,null,"□営業所に同じ",null,null,null,null,null,null,null,null,null,null,null,null,null,null,null,null,null,null,null,null,null,null,null,null,null,null,null,null,null,null,null,null,null,null,null,"ｍ",null,null,null,null,null,null,null,"㎡"]
[]
[2,null,"□営業所に同じ",null,null,null,null,null,null,null,null,null,null,null,null,null,null,null,null,null,null,null,null,null,null,null,null,null,null,null,null,null,null,null,null,null,null,null,"ｍ",null,null,null,null,null,null,null,"㎡"]
[]
[3,null,"□営業所に同じ",null,null,null,null,null,null,null,null,null,null,null,null,null,null,null,null,null,null,null,null,null,null,null,null,null,null,null,null,null,null,null,null,null,null,null,"ｍ",null,null,null,null,null,null,null,"㎡"]
[]
[4,null,"□営業所に同じ",null,null,null,null,null,null,null,null,null,null,null,null,null,null,null,null,null,null,null,null,null,null,null,null,null,null,null,null,null,null,null,null,null,null,null,"ｍ",null,null,null,null,null,null,null,"㎡"]
[]
[5,null,"□営業所に同じ",null,null,null,null,null,null,null,null,null,null,null,null,null,null,null,null,null,null,null,null,null,null,null,null,null,null,null,null,null,null,null,null,null,null,null,"ｍ",null,null,null,null,null,null,null,"㎡"]
[]
[6,null,"□営業所に同じ",null,null,null,null,null,null,null,null,null,null,null,null,null,null,null,null,null,null,null,null,null,null,null,null,null,null,null,null,null,null,null,null,null,null,null,"ｍ",null,null,null,null,null,null,null,"㎡"]
[]
[null,null,null,null,null,null,null,null,null,null,"乗務員の休憩又は睡眠のための施設の位置及び収容能力"]
[]
["位　　　　　　　　　　置　　　　　　　　　　",null,null,null,null,null,null,null,null,null,null,null,null,null,null,null,null,null,null,null,null,null,null,null,null,null,null,null,null,null,null,null,null,null,null,null,null,null,null,null,null,null,null,null,null,null,"収　容　能　力"]
[]
[1,null,"□営業所に同じ",null,null,null,null,null,null,null,null,null,null,null,null,null,null,null,null,null,null,null,null,null,null,null,null,null,null,null,null,null,null,null,null,null,null,null,null,null,null,null,null,null,null,null,"㎡"]
[]
[2,null,"□営業所に同じ",null,null,null,null,null,null,null,null,null,null,null,null,null,null,null,null,null,null,null,null,null,null,null,null,null,null,null,null,null,null,null,null,null,null,null,null,null,null,null,null,null,null,null,"㎡"]
[]
[3,null,"□営業所に同じ",null,null,null,null,null,null,null,null,null,null,null,null,null,null,null,null,null,null,null,null,null,null,null,null,null,null,null,null,null,null,null,null,null,null,null,null,null,null,null,null,null,null,null,"㎡"]
[]
[4,null,"□営業所に同じ",null,null,null,null,null,null,null,null,null,null,null,null,null,null,null,null,null,null,null,null,null,null,null,null,null,null,null,null,null,null,null,null,null,null,null,null,null,null,null,null,null,null,null,"㎡"]
[]
[5,null,"□営業所に同じ",null,null,null,null,null,null,null,null,null,null,null,null,null,null,null,null,null,null,null,null,null,null,null,null,null,null,null,null,null,null,null,null,null,null,null,null,null,null,null,null,null,null,null,"㎡"]
[]
[6,null,"□営業所に同じ",null,null,null,null,null,null,null,null,null,null,null,null,null,null,null,null,null,null,null,null,null,null,null,null,null,null,null,null,null,null,null,null,null,null,null,null,null,null,null,null,null,null,null,"㎡"]

{"sheet":"プルダウンリスト用データ","index":6,"n_rows":2,"n_cols":1,"rows_kept":2,"cut":false,"hidden":false,"merged":[]}
["　"]
["○"]